{"text_format":"1","workbook":"xlsx","n_sheets":4,"sheets":["Forside","Investeringer","Andet aktiv","Data"],"not_rendered":{"charts":0,"images":0,"macros":1,"external_links":0,"defined_names":16,"comments":0,"pivot_tables":4},"unopened":[],"bounds":{"document_bytes":16777216,"sheet_cells":100000,"rows_first":2000,"rows_last":500,"rows_between":2000,"halvings":0,"cell_chars":16384,"cell_head_chars":4096},"cells_cut":0,"cells_raw":0,"read":"whole","date_system":"1900"}

{"sheet":"Forside","index":0,"n_rows":7,"n_cols":3,"rows_kept":7,"cut":false,"hidden":false,"merged":[]}
[]
[]
[null,null,"Total anskaffelsespris for alle investeringer til tillægsansøgning"]
[null,null,{"$f":"SUM(Investeringer!D2:D51)+SUM('Andet aktiv'!C2:C51)","v":0}]
[]
[null,null,"Totale årlige afskrivninger for alle investeringer til tillægsansøgning"]
[null,null,{"$f":"SUM(Investeringer!F2:F51)+SUM('Andet aktiv'!E2:E51)","v":0}]

{"sheet":"Investeringer","index":1,"n_rows":51,"n_cols":6,"rows_kept":51,"cut":false,"hidden":false,"merged":[]}
["\nOverordnet investeringskategori\n","Investeringskategori","Specifik kategori","Anskaffelsespris","Standardlevetid (år)","Årlig afskrivning "]
[null,null,null,null,{"$f":"IFERROR(VLOOKUP(Investeringer!C2,Data!$L$3:$M$55,2,FALSE),\"\")","v":""},{"$f":"IFERROR(D2/E2,\"\")","v":""}]
[null,null,null,null,{"$f":"IFERROR(VLOOKUP(Investeringer!C3,Data!$L$3:$M$55,2,FALSE),\"\")","v":""},""]
[null,null,null,null,{"$f":"IFERROR(VLOOKUP(Investeringer!C4,Data!$L$3:$M$55,2,FALSE),\"\")","v":""},""]
[null,null,null,null,{"$f":"IFERROR(VLOOKUP(Investeringer!C5,Data!$L$3:$M$55,2,FALSE),\"\")","v":""},""]
[null,null,null,null,{"$f":"IFERROR(VLOOKUP(Investeringer!C6,Data!$L$3:$M$55,2,FALSE),\"\")","v":""},""]
[null,null,null,null,{"$f":"IFERROR(VLOOKUP(Investeringer!C7,Data!$L$3:$M$55,2,FALSE),\"\")","v":""},""]
[null,null,null,null,{"$f":"IFERROR(VLOOKUP(Investeringer!C8,Data!$L$3:$M$55,2,FALSE),\"\")","v":""},""]
[null,null,null,null,{"$f":"IFERROR(VLOOKUP(Investeringer!C9,Data!$L$3:$M$55,2,FALSE),\"\")","v":""},""]
[null,null,null,null,{"$f":"IFERROR(VLOOKUP(Investeringer!C10,Data!$L$3:$M$55,2,FALSE),\"\")","v":""},""]
[null,null,null,null,{"$f":"IFERROR(VLOOKUP(Investeringer!C11,Data!$L$3:$M$55,2,FALSE),\"\")","v":""},""]
[null,null,null,null,{"$f":"IFERROR(VLOOKUP(Investeringer!C12,Data!$L$3:$M$55,2,FALSE),\"\")","v":""},""]
[null,null,null,null,{"$f":"IFERROR(VLOOKUP(Investeringer!C13,Data!$L$3:$M$55,2,FALSE),\"\")","v":""},""]
[null,null,null,null,{"$f":"IFERROR(VLOOKUP(Investeringer!C14,Data!$L$3:$M$55,2,FALSE),\"\")","v":""},""]
[null,null,null,null,{"$f":"IFERROR(VLOOKUP(Investeringer!C15,Data!$L$3:$M$55,2,FALSE),\"\")","v":""},""]
[null,null,null,null,{"$f":"IFERROR(VLOOKUP(Investeringer!C16,Data!$L$3:$M$55,2,FALSE),\"\")","v":""},""]
[null,null,null,null,{"$f":"IFERROR(VLOOKUP(Investeringer!C17,Data!$L$3:$M$55,2,FALSE),\"\")","v":""},""]
[null,null,null,null,{"$f":"IFERROR(VLOOKUP(Investeringer!C18,Data!$L$3:$M$55,2,FALSE),\"\")","v":""},""]
[null,null,null,null,{"$f":"IFERROR(VLOOKUP(Investeringer!C19,Data!$L$3:$M$55,2,FALSE),\"\")","v":""},""]
[null,null,null,null,{"$f":"IFERROR(VLOOKUP(Investeringer!C20,Data!$L$3:$M$55,2,FALSE),\"\")","v":""},""]
[null,null,null,null,{"$f":"IFERROR(VLOOKUP(Investeringer!C21,Data!$L$3:$M$55,2,FALSE),\"\")","v":""},""]
[null,null,null,null,{"$f":"IFERROR(VLOOKUP(Investeringer!C22,Data!$L$3:$M$55,2,FALSE),\"\")","v":""},""]
[null,null,null,null,{"$f":"IFERROR(VLOOKUP(Investeringer!C23,Data!$L$3:$M$55,2,FALSE),\"\")","v":""},""]
[null,null,null,null,{"$f":"IFERROR(VLOOKUP(Investeringer!C24,Data!$L$3:$M$55,2,FALSE),\"\")","v":""},""]
[null,null,null,null,{"$f":"IFERROR(VLOOKUP(Investeringer!C25,Data!$L$3:$M$55,2,FALSE),\"\")","v":""},""]
[null,null,null,null,{"$f":"IFERROR(VLOOKUP(Investeringer!C26,Data!$L$3:$M$55,2,FALSE),\"\")","v":""},""]
[null,null,null,null,{"$f":"IFERROR(VLOOKUP(Investeringer!C27,Data!$L$3:$M$55,2,FALSE),\"\")","v":""},""]
[null,null,null,null,{"$f":"IFERROR(VLOOKUP(Investeringer!C28,Data!$L$3:$M$55,2,FALSE),\"\")","v":""},""]
[null,null,null,null,{"$f":"IFERROR(VLOOKUP(Investeringer!C29,Data!$L$3:$M$55,2,FALSE),\"\")","v":""},""]
[null,null,null,null,{"$f":"IFERROR(VLOOKUP(Investeringer!C30,Data!$L$3:$M$55,2,FALSE),\"\")","v":""},""]
[null,null,null,null,{"$f":"IFERROR(VLOOKUP(Investeringer!C31,Data!$L$3:$M$55,2,FALSE),\"\")","v":""},""]
[null,null,null,null,{"$f":"IFERROR(VLOOKUP(Investeringer!C32,Data!$L$3:$M$55,2,FALSE),\"\")","v":""},""]
[null,null,null,null,{"$f":"IFERROR(VLOOKUP(Investeringer!C33,Data!$L$3:$M$55,2,FALSE),\"\")","v":""},""]
[null,null,null,null,{"$f":"IFERROR(VLOOKUP(Investeringer!C34,Data!$L$3:$M$55,2,FALSE),\"\")","v":""},{"$f":"IFERROR(D34/E34,\"\")","v":""}]
[null,null,null,null,{"$f":"IFERROR(VLOOKUP(Investeringer!C35,Data!$L$3:$M$55,2,FALSE),\"\")","v":""},""]
[null,null,null,null,{"$f":"IFERROR(VLOOKUP(Investeringer!C36,Data!$L$3:$M$55,2,FALSE),\"\")","v":""},""]
[null,null,null,null,{"$f":"IFERROR(VLOOKUP(Investeringer!C37,Data!$L$3:$M$55,2,FALSE),\"\")","v":""},""]
[null,null,null,null,{"$f":"IFERROR(VLOOKUP(Investeringer!C38,Data!$L$3:$M$55,2,FALSE),\"\")","v":""},""]
[null,null,null,null,{"$f":"IFERROR(VLOOKUP(Investeringer!C39,Data!$L$3:$M$55,2,FALSE),\"\")","v":""},""]
[null,null,null,null,{"$f":"IFERROR(VLOOKUP(Investeringer!C40,Data!$L$3:$M$55,2,FALSE),\"\")","v":""},""]
[null,null,null,null,{"$f":"IFERROR(VLOOKUP(Investeringer!C41,Data!$L$3:$M$55,2,FALSE),\"\")","v":""},""]
[null,null,null,null,{"$f":"IFERROR(VLOOKUP(Investeringer!C42,Data!$L$3:$M$55,2,FALSE),\"\")","v":""},""]
[null,null,null,null,{"$f":"IFERROR(VLOOKUP(Investeringer!C43,Data!$L$3:$M$55,2,FALSE),\"\")","v":""},""]
[null,null,null,null,{"$f":"IFERROR(VLOOKUP(Investeringer!C44,Data!$L$3:$M$55,2,FALSE),\"\")","v":""},""]
[null,null,null,null,{"$f":"IFERROR(VLOOKUP(Investeringer!C45,Data!$L$3:$M$55,2,FALSE),\"\")","v":""},""]
[null,null,null,null,{"$f":"IFERROR(VLOOKUP(Investeringer!C46,Data!$L$3:$M$55,2,FALSE),\"\")","v":""},""]
[null,null,null,null,{"$f":"IFERROR(VLOOKUP(Investeringer!C47,Data!$L$3:$M$55,2,FALSE),\"\")","v":""},""]
[null,null,null,null,{"$f":"IFERROR(VLOOKUP(Investeringer!C48,Data!$L$3:$M$55,2,FALSE),\"\")","v":""},""]
[null,null,null,null,{"$f":"IFERROR(VLOOKUP(Investeringer!C49,Data!$L$3:$M$55,2,FALSE),\"\")","v":""},""]
[null,null,null,null,{"$f":"IFERROR(VLOOKUP(Investeringer!C50,Data!$L$3:$M$55,2,FALSE),\"\")","v":""},""]
[null,null,null,null,{"$f":"IFERROR(VLOOKUP(Investeringer!C51,Data!$L$3:$M$55,2,FALSE),\"\")","v":""},""]

{"sheet":"Andet aktiv","index":2,"n_rows":51,"n_cols":5,"rows_kept":51,"cut":false,"hidden":false,"merged":[]}
["Navn på aktiv","\nBeskrivelse\nKort beskrivelse af aktivet, og hvorfor det ikke kan placeres i en af de eksisterende POLKA-kategorier.\n","Anskaffelsespris","Skønnet teknisk levetid (år)","Årlig afskrivning "]
[null,null,null,null,{"$f":"IFERROR(C2/D2,\"\")","v":""}]
[null,null,null,null,{"$f":"IFERROR(C3/D3,\"\")","v":""}]
[null,null,null,null,""]
[null,null,null,null,""]
[null,null,null,null,""]
[null,null,null,null,""]
[null,null,null,null,""]
[null,null,null,null,""]
[null,null,null,null,""]
[null,null,null,null,""]
[null,null,null,null,""]
[null,null,null,null,""]
[null,null,null,null,""]
[null,null,null,null,""]
[null,null,null,null,""]
[null,null,null,null,""]
[null,null,null,null,""]
[null,null,null,null,""]
[null,null,null,null,""]
[null,null,null,null,""]
[null,null,null,null,""]
[null,null,null,null,""]
[null,null,null,null,""]
[null,null,null,null,""]
[null,null,null,null,""]
[null,null,null,null,""]
[null,null,null,null,""]
[null,null,null,null,""]
[null,null,null,null,""]
[null,null,null,null,""]
[null,null,null,null,""]
[null,null,null,null,""]
[null,null,null,null,""]
[null,null,null,null,""]
[null,null,null,null,""]
[null,null,null,null,""]
[null,null,null,null,""]
[null,null,null,null,""]
[null,null,null,null,""]
[null,null,null,null,""]
[null,null,null,null,""]
[null,null,null,null,""]
[null,null,null,null,""]
[null,null,null,null,""]
[null,null,null,null,""]
[null,null,null,null,""]
[null,null,null,null,""]
[null,null,null,null,""]
[null,null,null,null,""]
[null,null,null,null,""]

{"sheet":"Data","index":3,"n_rows":66,"n_cols":13,"rows_kept":66,"cut":false,"hidden":true,"merged":[]}
["Overordnet kategori","Investeringskategori","Specifik kategori","Levetid"]
["Produktionsanlæg","Boringer","Boring (inkl. etablering, forerør, filter og prøvepumpning)",30,null,"Overordnet kategori",null,"Investeringskategori",null,"Specifik kategori",null,"Levetider","Sum af Levetid"]
["Produktionsanlæg","Råvandsstationer","Råvandsstation komplet montering og boringshus/tørbrønd",30,null,"Distributionsanlæg",null,"Distributionsanlæg",null,"Andre_distributionsanlæg",null,"Afregningsmålere, elektroniske ",10]
["Produktionsanlæg","Råvandsstationer","Instrumenter (flowmåler+tryk transducer+alarmer)",10,null,"Fællesfunktionsanlæg",null,"Andre_distributionsanlæg",null,"Afregningsmålere, elektroniske ",null,"Afregningsmålere, mekaniske, ",8]
["Produktionsanlæg","Råvandsstationer","Pumpe inkl. stigrør og forerørsforsejlinger mv. ",15,null,"Produktionsanlæg",null,"Ledningsnet",null,"Afregningsmålere, mekaniske, ",null,"Arbejdsplads og kontor",5]
["Produktionsanlæg","Råvandsstationer","Erstatninger (OBS ingen øst-tillæg eller øvrige tillæg) ",30,null,null,null,"Pumpestationer_bygværker_bassiner",null,"SRO-brønd/kvarterbrønd/sektionsbrønd, Konstruktioner",null,"Behandlingsanlæg (kalk anlæg og luddosering)",25]
["Produktionsanlæg","Råvandsstationer","Hegn",15,null,null,null,"Ventiler",null,"SRO-brønd/kvarterbrønd/sektionsbrønd, Mek./EL",null,"Beholderanlæg - højdebeholder eller vandtårn",50]
["Produktionsanlæg","Råvandsstationer","Elanlæg",20,null,null,null,"Fællesfunktionsanlæg",null,"SRO-brønd/kvarterbrønd/sektionsbrønd, SRO",null,"Beluftningsanlæg, (iltningstrappe, ika-beluftning, bundbeluftbning og rislebakke), Konstruktioner",50]
["Produktionsanlæg","Råvandsstationer","SRO anlæg",10,null,null,null,"Fællesfunktionsanlæg_",null,"Andre_produktionsanlæg",null,"Beluftningsanlæg, (iltningstrappe, ika-beluftning, bundbeluftbning og rislebakke), Mek./EL",25]
["Produktionsanlæg","Råvandsledninger","Råvandsledninger",75,null,null,null,"Produktionsanlæg",null,"Sikring (terror, hærværk, hegn, porte og overvågningssystemer), Mek./El",null,"Beluftningsanlæg, (kompressorbeluftning og ren ilt)",25]
["Produktionsanlæg","Vandværk","Beluftningsanlæg, (iltningstrappe, ika-beluftning, bundbeluftbning og rislebakke), Konstruktioner",50,null,null,null,"Andre_produktionsanlæg",null,"Sikring (terror, hærværk, hegn, porte og overvågningssystemer), SRO",null,"Boring (inkl. etablering, forerør, filter og prøvepumpning)",30]
["Produktionsanlæg","Vandværk","Beluftningsanlæg, (iltningstrappe, ika-beluftning, bundbeluftbning og rislebakke), Mek./EL",25,null,null,null,"Boringer",null,"Boringer",null,"Bygning for trykforøgere",75]
["Produktionsanlæg","Vandværk","Beluftningsanlæg, (kompressorbeluftning og ren ilt)",25,null,null,null,"Bygninger",null,"Boring (inkl. etablering, forerør, filter og prøvepumpning)",null,"Elanlæg",20]
["Produktionsanlæg","Vandværk","Behandlingsanlæg (kalk anlæg og luddosering)",25,null,null,null,"Råvandsledninger",null,"Bygninger",null,"Elanlæg og SRO-anlæg - vandværk, Elanlæg",25]
["Produktionsanlæg","Vandværk","Filteranlæg, åbne filtre, Konstruktioner",50,null,null,null,"Råvandsstationer",null,"Bygning for trykforøgere",null,"Elanlæg og SRO-anlæg - vandværk, SRO",10]
["Produktionsanlæg","Vandværk","Filteranlæg, åbne filtre, Mek./EL",25,null,null,null,"Vandværk",null,"Etageareal ",null,"Erstatninger (OBS ingen øst-tillæg eller øvrige tillæg) ",30]
["Produktionsanlæg","Vandværk","Filteranlæg, trykfiltre",25,null,null,null,null,null,"Laboratorium (bygning, inkl. inventar+udstyr), Konstruktioner",null,"Etageareal ",75]
["Produktionsanlæg","Vandværk","Rentvandsbeholder insitu støbt eller element",50,null,null,null,null,null,"Laboratorium (bygning, inkl. inventar+udstyr), Mek./EL",null,"Filteranlæg, trykfiltre",25]
["Produktionsanlæg","Vandværk","Udpumpningsanlæg",25,null,null,null,null,null,"Værksted, Lager, Garage og rørlager",null,"Filteranlæg, åbne filtre, Konstruktioner",50]
["Produktionsanlæg","Vandværk","Skyllevand-/slamhåndteringsanlæg ",50,null,null,null,null,null,"Fællesfunktionsanlæg_",null,"Filteranlæg, åbne filtre, Mek./EL",25]
["Produktionsanlæg","Vandværk","Skyllevandsbehandling, inkl. UV-filter mv., Mek./EL",25,null,null,null,null,null,"Arbejdsplads og kontor",null,"Hegn",15]
["Produktionsanlæg","Vandværk","Skyllevandsbehandling, inkl. UV-filter mv., SRO",10,null,null,null,null,null,"Inverter til solcelleanlæg",null,"Inspektionsbrønd, Konstruktioner",50]
["Produktionsanlæg","Vandværk","Nødstrømsanlæg på vandværk",25,null,null,null,null,null,"Køretøjer",null,"Inspektionsbrønd, Mek./EL",15]
["Produktionsanlæg","Vandværk","Elanlæg og SRO-anlæg - vandværk, Elanlæg",25,null,null,null,null,null,"Solcelleanlæg ekskl. inverter",null,"Instrumenter (flowmåler+tryk transducer+alarmer)",10]
["Produktionsanlæg","Vandværk","Elanlæg og SRO-anlæg - vandværk, SRO",10,null,null,null,null,null,"Ledningsnet",null,"Inverter til solcelleanlæg",10]
["Produktionsanlæg","Bygninger","Etageareal ",75,null,null,null,null,null,"Inspektionsbrønd, Konstruktioner",null,"Køretøjer",5]
["Produktionsanlæg","Bygninger","Værksted, Lager, Garage og rørlager",75,null,null,null,null,null,"Inspektionsbrønd, Mek./EL",null,"Laboratorium (bygning, inkl. inventar+udstyr), Konstruktioner",75]
["Produktionsanlæg","Bygninger","Bygning for trykforøgere",75,null,null,null,null,null,"Ledninger, herunder også eternitledninger",null,"Laboratorium (bygning, inkl. inventar+udstyr), Mek./EL",10]
["Produktionsanlæg","Bygninger","Laboratorium (bygning, inkl. inventar+udstyr), Konstruktioner",75,null,null,null,null,null,"Skelbrønd, Konstruktioner",null,"Ledninger, herunder også eternitledninger",75]
["Produktionsanlæg","Bygninger","Laboratorium (bygning, inkl. inventar+udstyr), Mek./EL",10,null,null,null,null,null,"Skelbrønd, Mek./EL",null,"Nødstrømsanlæg på vandværk",25]
["Produktionsanlæg","Andre_produktionsanlæg","Sikring (terror, hærværk, hegn, porte og overvågningssystemer), Mek./El",25,null,null,null,null,null,"Stik på ledningsnet, Konstruktioner",null,"Pumpe inkl. stigrør og forerørsforsejlinger mv. ",15]
["Produktionsanlæg","Andre_produktionsanlæg","Sikring (terror, hærværk, hegn, porte og overvågningssystemer), SRO",10,null,null,null,null,null,"Stik på ledningsnet, Mek./EL",null,"Pumpestation (inkl. evt. hydrofor)/trykforøger, Konstruktioner",50]
["Distributionsanlæg","Ledningsnet","Ledninger, herunder også eternitledninger",75,null,null,null,null,null,"Støbejernsledninger",null,"Pumpestation (inkl. evt. hydrofor)/trykforøger, Mek./EL",25]
["Distributionsanlæg","Ledningsnet","Støbejernsledninger",100,null,null,null,null,null,"Pumpestationer_bygværker_bassiner",null,"Pumpestation (inkl. evt. hydrofor)/trykforøger, SRO",10]
["Distributionsanlæg","Ledningsnet","Skelbrønd, Konstruktioner",50,null,null,null,null,null,"Beholderanlæg - højdebeholder eller vandtårn",null,"Rentvandsbeholder insitu støbt eller element",50]
["Distributionsanlæg","Ledningsnet","Skelbrønd, Mek./EL",15,null,null,null,null,null,"Pumpestation (inkl. evt. hydrofor)/trykforøger, Konstruktioner",null,"Råvandsledninger",75]
["Distributionsanlæg","Ledningsnet","Inspektionsbrønd, Konstruktioner",50,null,null,null,null,null,"Pumpestation (inkl. evt. hydrofor)/trykforøger, Mek./EL",null,"Råvandsstation komplet montering og boringshus/tørbrønd",30]
["Distributionsanlæg","Ledningsnet","Inspektionsbrønd, Mek./EL",15,null,null,null,null,null,"Pumpestation (inkl. evt. hydrofor)/trykforøger, SRO",null,"Sikring (terror, hærværk, hegn, porte og overvågningssystemer), Mek./El",25]
["Distributionsanlæg","Ledningsnet","Stik på ledningsnet, Konstruktioner",75,null,null,null,null,null,"Råvandsledninger",null,"Sikring (terror, hærværk, hegn, porte og overvågningssystemer), SRO",10]
["Distributionsanlæg","Ledningsnet","Stik på ledningsnet, Mek./EL",75,null,null,null,null,null,"Råvandsledninger",null,"Skelbrønd, Konstruktioner",50]
["Distributionsanlæg","Ventiler","Ventiler",75,null,null,null,null,null,"Råvandsstationer",null,"Skelbrønd, Mek./EL",15]
["Distributionsanlæg","Pumpestationer_bygværker_bassiner","Pumpestation (inkl. evt. hydrofor)/trykforøger, Konstruktioner",50,null,null,null,null,null,"Elanlæg",null,"Skyllevand-/slamhåndteringsanlæg ",50]
["Distributionsanlæg","Pumpestationer_bygværker_bassiner","Pumpestation (inkl. evt. hydrofor)/trykforøger, Mek./EL",25,null,null,null,null,null,"Erstatninger (OBS ingen øst-tillæg eller øvrige tillæg) ",null,"Skyllevandsbehandling, inkl. UV-filter mv., Mek./EL",25]
["Distributionsanlæg","Pumpestationer_bygværker_bassiner","Pumpestation (inkl. evt. hydrofor)/trykforøger, SRO",10,null,null,null,null,null,"Hegn",null,"Skyllevandsbehandling, inkl. UV-filter mv., SRO",10]
["Distributionsanlæg","Pumpestationer_bygværker_bassiner","Beholderanlæg - højdebeholder eller vandtårn",50,null,null,null,null,null,"Instrumenter (flowmåler+tryk transducer+alarmer)",null,"Solcelleanlæg ekskl. inverter",25]
["Distributionsanlæg","Andre_distributionsanlæg","Afregningsmålere, mekaniske, ",8,null,null,null,null,null,"Pumpe inkl. stigrør og forerørsforsejlinger mv. ",null,"SRO anlæg",10]
["Distributionsanlæg","Andre_distributionsanlæg","Afregningsmålere, elektroniske ",10,null,null,null,null,null,"Råvandsstation komplet montering og boringshus/tørbrønd",null,"SRO-brønd/kvarterbrønd/sektionsbrønd, Konstruktioner",50]
["Distributionsanlæg","Andre_distributionsanlæg","SRO-brønd/kvarterbrønd/sektionsbrønd, Konstruktioner",50,null,null,null,null,null,"SRO anlæg",null,"SRO-brønd/kvarterbrønd/sektionsbrønd, Mek./EL",15]
["Distributionsanlæg","Andre_distributionsanlæg","SRO-brønd/kvarterbrønd/sektionsbrønd, Mek./EL",15,null,null,null,null,null,"Vandværk",null,"SRO-brønd/kvarterbrønd/sektionsbrønd, SRO",10]
["Distributionsanlæg","Andre_distributionsanlæg","SRO-brønd/kvarterbrønd/sektionsbrønd, SRO",10,null,null,null,null,null,"Behandlingsanlæg (kalk anlæg og luddosering)",null,"Stik på ledningsnet, Konstruktioner",75]
["Fællesfunktionsanlæg","Fællesfunktionsanlæg_","Arbejdsplads og kontor",5,null,null,null,null,null,"Beluftningsanlæg, (iltningstrappe, ika-beluftning, bundbeluftbning og rislebakke), Konstruktioner",null,"Stik på ledningsnet, Mek./EL",75]
["Fællesfunktionsanlæg","Fællesfunktionsanlæg_","Køretøjer",5,null,null,null,null,null,"Beluftningsanlæg, (iltningstrappe, ika-beluftning, bundbeluftbning og rislebakke), Mek./EL",null,"Støbejernsledninger",100]
["Fællesfunktionsanlæg","Fællesfunktionsanlæg_","Solcelleanlæg ekskl. inverter",25,null,null,null,null,null,"Beluftningsanlæg, (kompressorbeluftning og ren ilt)",null,"Udpumpningsanlæg",25]
["Fællesfunktionsanlæg","Fællesfunktionsanlæg_","Inverter til solcelleanlæg",10,null,null,null,null,null,"Elanlæg og SRO-anlæg - vandværk, Elanlæg",null,"Ventiler",75]
[null,null,null,null,null,null,null,null,null,"Elanlæg og SRO-anlæg - vandværk, SRO",null,"Værksted, Lager, Garage og rørlager",75]
[null,null,null,null,null,null,null,null,null,"Filteranlæg, trykfiltre"]
[null,null,null,null,null,null,null,null,null,"Filteranlæg, åbne filtre, Konstruktioner"]
[null,null,null,null,null,null,null,null,null,"Filteranlæg, åbne filtre, Mek./EL"]
[null,null,null,null,null,null,null,null,null,"Nødstrømsanlæg på vandværk"]
[null,null,null,null,null,null,null,null,null,"Rentvandsbeholder insitu støbt eller element"]
[null,null,null,null,null,null,null,null,null,"Skyllevand-/slamhåndteringsanlæg "]
[null,null,null,null,null,null,null,null,null,"Skyllevandsbehandling, inkl. UV-filter mv., Mek./EL"]
[null,null,null,null,null,null,null,null,null,"Skyllevandsbehandling, inkl. UV-filter mv., SRO"]
[null,null,null,null,null,null,null,null,null,"Udpumpningsanlæg"]
[null,null,null,null,null,null,null,null,null,"Ventiler"]
[null,null,null,null,null,null,null,null,null,"Ventiler"]